Workbook

Sheet Instructions
A1: ISA Risk Tier Calculator – Instructions for Use
A3: Purpose
A4: This calculator determines the Infrastructure SA (ISA) assurance tier for a project or program using the High Value High Risk (HVHR) methodology under ISA Assurance Framework 3.0.
A6: IMPORTANT – Editable cells only
A7: Users must ONLY enter or change values in green cells
A8: All other cells are locked and automatically calculated
A9: Do not overwrite formulas or unlock sheets
A11: Instructions
A12: 1. Project / Program name
A13: Enter the full name of the project/program in the green input cell at the top of the calculator.
A15: 2. State Government Investment ($m)
A16: Enter the State Government investment in millions (whole numbers or decimals, no $ symbol).
A18: 3. Non‑State Government Investment ($m)
A19: Enter the non‑State contribution in millions. Enter 0 if none.
A21: 4. Assessment Date
A22: Enter the date this assessment was completed in the green date cell.
A24: 5. Criterion ratings
A25: For each criterion, select the most suited rating for the project/program based on the descriptor from the dropdown list.
A27: 6. National Significance
A28: Select Yes or No from the dropdown accordingly. This directly affects the assurance tier outcome.
A30: Read‑only outputs (auto‑calculated)
A31: ISA Tier – Tier 1 to Tier 4
A32: Profile – HVHR / HVLR / LVHR / LVLR
A36: Good practice / when to re‑calculate Re‑run the calculator if there is a material change to:
A37: Project scope or solution
A38: Cost or funding profile
A39: Risk, complexity, or delivery approach
A40: National significance or Commonwealth funding intent
A44: Support This calculator aligns with ISAAF 3.0 and Infrastructure SA assurance requirements.
A45: ISAAF3.0
A46: ISA Assurance Guide 2026
A48: Tier Descriptor | C48: Minimum Project Reporting Frequency | G48: Assurance Review | L48: RAP Update Frequency
A49: Tier | B49: Descriptor (value, risk and assurance expectation) | C49: Planning (to Gate 2) | D49: Pre Delivery (to Gate 3)* | E49: Delivery (to Gate 4) | F49: Post Completion (to Gate 5) | G49: Gate 1 | H49: Gate 2 | I49: Gate 3 | J49: Gate 4 | K49: Gate 5 | L49: Critical | M49: Essential | N49: Suggested
A50: 1 | B50: State-significant / mission-critical projects with the highest potential impact on service delivery, safety, reputation, budget and/or schedule. Typically characterised by one or more of: very large investment; high complexity (multi-site/multi-agency, novel delivery model, significant interfaces); material uncertainty (scope, market, approvals); and/or high consequence of failure. | C50: Bi monthly | D50: Monthly | E50: Monthly | F50: By exception (6 monthly) | G50: Yes | H50: Yes | I50: Yes | J50: Yes | K50: Yes | L50: Monthly | M50: Monthly | N50: Quarterly
B51: Assurance expectation: highest level of independent oversight and scrutiny; frequent reporting; proactive assurance to support key decisions and risk mitigation.
A52: 2 | B52: High value / high risk projects with significant strategic importance and/or investment, and a risk profile that is elevated but more contained than Tier 1. Complexity and uncertainty are present (e.g., notable stakeholder sensitivity, procurement challenges, key dependencies), however impacts are generally less systemic and/or more manageable than Tier 1. | C52: Quarterly | D52: Bi monthly | E52: Monthly | F52: By exception (min annually) | G52: Yes | H52: Yes | I52: Yes | J52: Yes | K52: Yes | L52: Monthly | M52: Monthly | N52: Quarterly
B53: Assurance expectation: strong independent oversight at major milestones, regular reporting, and targeted assurance focused on the main drivers of risk (scope, cost, schedule, deliverability and stakeholder impacts).
A54: 3 | B54: High value or high risk projects where outcomes are important, but impacts are largely localised and risks are generally well understood and controllable using standard governance and delivery approaches. May include discrete complex elements, but without the scale, interdependencies, or consequence profile of Tiers 1–2. | C54: Quarterly | D54: Quarterly | E54: Quarterly | F54: By exception (min annually) | G54: Yes | H54: Yes | I54: HV/HR | J54: HV/HR | K54: Yes | L54: Monthly | M54: Quarterly | N54: Quarterly
B55: Assurance expectation: proportionate assurance (often milestone-based) and periodic reporting; escalation and additional assurance if risk profile changes.
A56: 4 | B56: Lower value or lower risk projects that are routine, repeatable and/or well precedented, with low complexity and low consequence of failure. Delivery is expected to be achievable within existing capability with minimal dependencies and low stakeholder sensitivity. | C56: By agreement | D56: By agreement | E56: By agreement | F56: By agreement (min annually) | G56: Yes | H56: Yes | I56: No | J56: No | K56: Yes | L56: Monthly | M56: Quarterly | N56: Quarterly
B57: Assurance expectation: minimal, light-touch assurance and reporting (often “by agreement”); focus on exception-based escalation if issues arise.
A58: *Pre Delivery includes the period from investment decision to commencement of main works construction.

Sheet ISA Risk Tier Calculator
A1: ISA Risk Tier Calculator
A3: Project/Program Name: | B3: PROJECT X
A4: State Government Investment / Impact ($m): | B4: 0 | C4: ISA Tier: | D4: =IF(C17="Yes", "Tier 1", C48) -> Tier 4
A5: Non-State Government Investment ($m): | B5: 0 | C5: Profile: | D5: =$C$39 -> Low Value High Risk
A6: Project / Program Total Capital Investment Value ($m): | B6: =B4+B5 -> 0 | C6: Is project/program Nationally Significant?: | D6: =$C$17 -> No
A7: State Government Investment Percentage | B7: =IFERROR(IF(B6>=B4,B4/B6,"N/A"),"") -> 
A8: Assessment Date:
A10: Criterion | B10: Criterion Description | C10: Rating (Select from dropdown) | D10: Rating Descriptor | E10: Criterion Score | F10: Weighting | G10: Weighted Score
A11: ='Lookups HVHR calc'!A3 -> V1. Government Priority | B11: =VLOOKUP(A11,'Lookups HVHR calc'!$A:$B,2,FALSE) -> The extent to which the initiative is clearly aligned with government priorities, including endorsed strategies, policies, and plans, or is formally established through Cabinet or Ministerial direction, including initiatives that enable delivery of a mandated government priority project. | C11: Medium | D11: =VLOOKUP(TRIM($C11),'Lookups HVHR calc'!$A$4:$C$6,2,FALSE) -> Agency identified priority aligned to government objectives, supported by internal/agency endorsement and progressing to government consideration (e.g., submission/business case in development or lodged), but not yet publicly committed, formally endorsed by government, or mandated. | E11: =VLOOKUP(TRIM($C11),'Lookups HVHR calc'!$A$4:$D$6,4,FALSE) -> 0.33 | F11: ='Lookups HVHR calc'!C3 -> 0.25 | G11: =E11*F11 -> 0.0825
A12: ='Lookups HVHR calc'!A7 -> V2. Service Criticality | B12: =VLOOKUP(A12,'Lookups HVHR calc'!$A:$B,2,FALSE) -> The degree to which the initiative is critical to avoid adverse service impacts on the community from existing infrastructure, or to support service improvements through clearly identified demands. | C12: Medium | D12: =VLOOKUP(TRIM($C12),'Lookups HVHR calc'!$A$8:$C$10,2,FALSE) -> Addresses an identified or forecast service deficiency (or clear service improvement demand) where impacts are material but manageable in the near term through effective mitigations/workarounds, allowing delivery to be scheduled (not urgent), while still requiring investment within the planning horizon. | E12: =VLOOKUP(TRIM($C12),'Lookups HVHR calc'!$A$8:$D$10,4,FALSE) -> 0.33 | F12: ='Lookups HVHR calc'!C7 -> 0.25 | G12: 0.0825
A13: ='Lookups HVHR calc'!A11 -> R3. Approvals and Interface Management | B13: =VLOOKUP(A13,'Lookups HVHR calc'!$A:$B,2,FALSE) -> The degree of complexity arising from internal and external approvals and interfaces—across stakeholders, interdependent projects, contractors, and integrated systems—and the level of ongoing management required to mitigate schedule, cost, and scope impacts. | C13: High | D13: =VLOOKUP('ISA Risk Tier Calculator'!$C13,'Lookups HVHR calc'!$A$12:$C$16,2,FALSE) -> High interface and approvals complexity (multiple stakeholders and dependencies; several external approvals/permits), with potential for material impacts to schedule/cost/scope—requiring proactive, ongoing interface management but within a largely understood approval regime. | E13: =VLOOKUP(C13,'Lookups HVHR calc'!A12:D16,4,FALSE) -> 0.75 | F13: ='Lookups HVHR calc'!C11 -> 0.125 | G13: 0.09375
A14: ='Lookups HVHR calc'!A17 -> R4. Governance and Capability | B14: =VLOOKUP(A14,'Lookups HVHR calc'!$A:$B,2,FALSE) -> The extent to which the project team has clear governance including decision making, demonstrated capability (experience), and adequate skilled capacity—or can access these—to plan, deliver, and sustain the proposed project or program effectively. | C14: Medium | D14: =VLOOKUP('ISA Risk Tier Calculator'!$C14,'Lookups HVHR calc'!$A$18:$C$22,2,FALSE) -> Defined governance and some relevant delivery experience (including comparable work), but capacity is constrained and/or key skills are limited—requiring proactive recruitment, partner support, or targeted capability uplift to deliver effectively. | E14: =VLOOKUP(C14,'Lookups HVHR calc'!A18:D22,4,FALSE) -> 0.5 | F14: ='Lookups HVHR calc'!C11 -> 0.125 | G14: 0.0625
A15: ='Lookups HVHR calc'!A23 -> R5. Complexity of obtaining Social Licence | B15: =VLOOKUP(A15,'Lookups HVHR calc'!$A:$B,2,FALSE) -> The extent to which environmental, social, economic and cultural/heritage impacts are complex, interdependent and contested, and the project team’s capability to secure and maintain stakeholder acceptance and approvals. | C15: Medium | D15: =VLOOKUP('ISA Risk Tier Calculator'!$C15,'Lookups HVHR calc'!$A$24:$C$28,2,FALSE) -> Moderate impact complexity with some interdependencies and stakeholder sensitivities, manageable through active coordination, planned mitigations and consistent, targeted engagement. | E15: =VLOOKUP(C15,'Lookups HVHR calc'!A24:D28,4,FALSE) -> 0.5 | F15: ='Lookups HVHR calc'!C17 -> 0.125 | G15: 0.0625
A16: ='Lookups HVHR calc'!A29 -> R6. Funding, Procurement & Delivery Complexity | B16: =VLOOKUP(A16,'Lookups HVHR calc'!$A:$B,2,FALSE) -> The degree of complexity associated with funding arrangements, functional requirements, and sourcing activities—including scale, novelty, market constraints, interdependencies, and compliance obligations—and the extent to which these factors challenge procurement capability and impact delivery across project phases. | C16: Very High | D16: =VLOOKUP('ISA Risk Tier Calculator'!$C16,'Lookups HVHR calc'!$A$30:$C$34,2,FALSE) -> Highly complex funding and/or procurement (novel financing or contracting, significant compliance obligations, constrained market capacity) and/or technically complex requirements, with proven delivery difficulty—requiring intensive commercial and delivery management across phases. | E16: =VLOOKUP(C16,'Lookups HVHR calc'!A30:D34,4,FALSE) -> 1 | F16: ='Lookups HVHR calc'!C23 -> 0.125 | G16: 0.125
A17: National Significance | B17: ='Lookups HVHR calc'!B37 -> Is the initiative proposing to seek $250m or greater of Federal Government funding and/or meets the definition of Nationally Significant ? Infrastructure Australia (IA) defines nationally significant infrastructure as proposals that require Australian Government involvement, and/or relate to national infrastructure networks; materially advance national priorities and productivity, economic, social, liveability or sustainability outcomes at a national or wide-reaching regional scale. The Infrastructure Australia Act 2008 (the Act) defines nationally significant infrastructure as including “transport, energy, communications, water and social infrastructure in which investment or further investment will materially improve national productivity.” | C17: No | D17: =VLOOKUP(C17,'Lookups HVHR calc'!A38:C39,2,FALSE) -> No, the proposal does not meet the definition. | E17: =VLOOKUP(C17,'Lookups HVHR calc'!A38:D39,4,FALSE) -> As per calculated Assurance Tier
F18: =SUM(F11:F17) -> 1 | G18: =SUM(G11:G17) -> 0.50875
A21: DO NOT change or delete these tables
A22: Tier Calculation | I22: =5*0.7 -> 3.5
A24: National Significance | B24: Step 1 - Is it Nationally Significant?
A25: Yes | B25: Tier 1
A26: No | B26: Follow Steps 2, 3, 4
A29: Investment Value$ | B29: Step 2 - Investment Value Modifier | C29: =INDEX(B30:B34,MATCH($B$6,A30:A34,1)) -> 0.2 | Y29: State Government Investment
A30: 0 | B30: 0.2 | C30: $0-50m | X30: Weighted Score | Y30: 0-$15m | Z30: $15m-$30m | AA30: $30m-$50m | AB30: $50m-$75m | AC30: $75m-$100m | AD30: 100
A31: 50 | B31: 0.4 | C31: $50-100m | X31: 0 | Y31: 4 | Z31: 4 | AA31: 3 | AB31: 2 | AC31: 2 | AD31: 2
A32: 100 | B32: 0.6 | C32: $100-250m | X32: 0.2 | Y32: 4 | Z32: 3 | AA32: 3 | AB32: 2 | AC32: 2 | AD32: 1
A33: 250 | B33: 0.8 | C33: $250m-500m | X33: 0.35 | Y33: 4 | Z33: 3 | AA33: 3 | AB33: 2 | AC33: 2 | AD33: 1
A34: 500 | B34: 1 | C34: $500m+ | X34: 0.501 | Y34: 4 | Z34: 3 | AA34: 2 | AB34: 2 | AC34: 1 | AD34: 1
X35: 0.751 | Y35: 4 | Z35: 2 | AA35: 2 | AB35: 1 | AC35: 1 | AD35: 1
A38: Modified Weighted Score | B38: Step 3 - Total Weighted Score & Assurance Profile
A39: Weighted Value criteria (modified) | B39: =SUM(G11:G12)*C29 -> 0.033 | C39: =_xlfn.IFS(B39>=25%,"High Value",B39<25%,"Low Value")&" "&_xlfn.IFS(B40>=25%,"High Risk",B40<25%,"Low Risk") -> Low Value High Risk
A40: Weighted Risk criteria | B40: =SUM(G13:G16) -> 0.34375
A41: Modified Weighted Score | B41: =SUM(B39:B40) -> 0.37675
A43: High Value High Risk (HVHR) | B43: Value >=25%; Risk >=25%
A44: High Value Low Risk (HVLR) | B44: Value >=25%; Risk <25%
A45: Low Value High Risk (LVHR) | B45: Value<25%; Risk >=25%
A46: Low Value Low Risk (LVLR) | B46: Value<25%; Risk <25%
A48: Tier Bands | B48: Step 4 - Assurance Tier | C48: =INDEX(B49:B52,MATCH(B41,A49:A52,1)) -> Tier 4
A49: 0 | B49: Tier 4
A50: 0.451 | B50: Tier 3
A51: 0.601 | B51: Tier 2
A52: 0.801 | B52: Tier 1
A55: Value Range | B55: Band | C55: CAMMS projects split (Active & Complete)
A56: 0-$50m | B56: >=0 | C56: 0.09
A57: $50m-$100m | B57: >=50 | C57: 0.24
A58: $100m-$250m | B58: >=100 | C58: 0.35
A59: $250m-$500m | B59: >=250 | C59: 0.2
A60: $500m+ | B60: >=500 | C60: 0.12
C61: =SUM(C56:C60) -> 1
A65: Gate Reviews
A66: Tier | B66: Gate 0 | C66: Gate 1 | D66: Gate 2 | E66: Gate 3 | F66: Gate 4 | G66: Gate 5
A67: 1 | B67: Yes | C67: Yes | D67: Yes | E67: Yes | F67: Yes | G67: Yes
A68: 2 | B68: Yes | C68: Yes | D68: Yes | E68: Yes | F68: Yes | G68: Yes
A69: 3 | B69: Yes | C69: Yes | D69: Yes | E69: HV/HR | F69: HV/HR | G69: Yes
A70: 4 | B70: Yes | C70: Yes | D70: Yes | E70: No | F70: No | G70: Yes
A74: Minimum project reporting frequency
A75: Tier | B75: Planning (to Gate 2) | C75: Pre Delivery (to Gate 3) | D75: Delivery (to Gate 4) | E75: Post Completion (to Gate 5)
A76: 1 | B76: Bi monthly | C76: Monthly | D76: Monthly | E76: By exception (6 monthly)
A77: 2 | B77: Quarterly | C77: Bi monthly | D77: Monthly | E77: By exception (min annually)
A78: 3 | B78: Quarterly | C78: Quarterly | D78: Quarterly | E78: By exception (min annually)
A79: 4 | B79: By agreement | C79: By agreement | D79: By agreement | E79: By agreement (min annually)
A80: *Pre Delivery – commences from investment decision to commencement of main works construction
A82: RAP update frequency
A83: Tier | B83: Critical | C83: Essential | D83: Suggested
A84: 1 | B84: Monthly | C84: Monthly | D84: Quarterly
A85: 2 | B85: Monthly | C85: Monthly | D85: Quarterly
A86: 3 | B86: Monthly | C86: Quarterly | D86: Quarterly
A87: 4 | B87: Monthly | C87: Quarterly | D87: Quarterly

Sheet Lookups HVHR calc (hidden)
A1: Lookups | B1: from Gate 1 to Gate 4 | C1: =SUM(C3,C7,C11,C17,C23,C37,C29) -> 1
B2: Scoring guide | C2: weighting
A3: V1. Government Priority | B3: The extent to which the initiative is clearly aligned with government priorities, including endorsed strategies, policies, and plans, or is formally established through Cabinet or Ministerial direction, including initiatives that enable delivery of a mandated government priority project. | C3: 0.25 | D3: Score | E3: Requirement
A4: Very High | B4: Mandated government priority with explicit Cabinet/Ministerial/whole of government direction (e.g., Cabinet decision, Ministerial directive, Budget measure), including initiatives that enable delivery of a mandated priority, and subject to enhanced oversight/reporting. | C4: Very High | D4: 1 | E4: Descriptor
A5: High | B5: Publicly announced and/or formally endorsed government initiative (e.g., published strategy/plan/policy commitment), with clear line of sight to stated government priorities but not requiring Cabinet/Ministerial mandate or additional central oversight/reporting beyond business as usual. | C5: High | D5: 0.67 | E5: Descriptor
A6: Medium | B6: Agency identified priority aligned to government objectives, supported by internal/agency endorsement and progressing to government consideration (e.g., submission/business case in development or lodged), but not yet publicly committed, formally endorsed by government, or mandated. | C6: Medium | D6: 0.33 | E6: Descriptor
A7: V2. Service Criticality | B7: The degree to which the initiative is critical to avoid adverse service impacts on the community from existing infrastructure, or to support service improvements through clearly identified demands. | C7: 0.25 | D7: =D3 -> Score | E7: Requirement
A8: Very High | B8: Addresses an urgent and critical service delivery deficiency (or immediate capacity shortfall) with severe community/safety/regulatory consequences if not addressed now; limited practical short term workarounds. | C8: Very High | D8: 1 | E8: Descriptor
A9: High | B9: Addresses a major service delivery deficiency (or significant demand growth) expected to cause substantial impacts if not addressed within the planning horizon; short term control measures/workarounds exist but are not sustainable. | C9: High | D9: 0.67 | E9: Descriptor
A10: Medium | B10: Addresses an identified or forecast service deficiency (or clear service improvement demand) where impacts are material but manageable in the near term through effective mitigations/workarounds, allowing delivery to be scheduled (not urgent), while still requiring investment within the planning horizon. | C10: Medium | D10: 0.33 | E10: Descriptor
A11: R3. Approvals and Interface Management | B11: The degree of complexity arising from internal and external approvals and interfaces—across stakeholders, interdependent projects, contractors, and integrated systems—and the level of ongoing management required to mitigate schedule, cost, and scope impacts. | C11: 0.125 | D11: =$D$3 -> Score | E11: Requirement
A12: Very High | B12: Extremely complex approvals and interfaces across multiple external entities and integrated systems (e.g., regulators, multiple asset owners/operators, major interdependent programs), with high schedule/cost/scope exposure and continuous, intensive interface management required. | C12: Very High | D12: 1 | E12: Descriptor
A13: High | B13: High interface and approvals complexity (multiple stakeholders and dependencies; several external approvals/permits), with potential for material impacts to schedule/cost/scope—requiring proactive, ongoing interface management but within a largely understood approval regime. | C13: High | D13: 0.75 | E13: Descriptor
A14: Medium | B14: Moderate interfaces and approvals (some key stakeholders; limited dependencies; routine permits), with manageable risk to schedule/cost/scope—requiring planned coordination and periodic management attention. | C14: Medium | D14: 0.5 | E14: Descriptor
A15: Low | B15: Minor interfaces and approvals (few stakeholders; limited dependencies; standard approvals/permits), unlikely to introduce material schedule/cost/scope risk and manageable through business as usual processes with minimal additional coordination. | C15: Low | D15: 0.25 | E15: Descriptor
A16: Very Low | B16: Minimal interfaces and approvals (internal approvals only; no external permits/consents) and no meaningful dependency on other projects, systems, or infrastructure; negligible interface management effort. | C16: Very Low | D16: 0 | E16: Descriptor
A17: R4. Governance and Capability | B17: The extent to which the project team has clear governance including decision making, demonstrated capability (experience), and adequate skilled capacity—or can access these—to plan, deliver, and sustain the proposed project or program effectively. | C17: 0.125 | D17: =$D$3 -> Score | E17: Requirement
A18: Very High | B18: Robust governance (clear decision rights, established assurance) and business as usual delivery capability, with a strong track record and well established skilled capacity to plan, deliver, and sustain similar initiatives. | C18: Very High | D18: 0 | E18: Descriptor
A19: High | B19: Clear governance and proven delivery capability across multiple similar initiatives, with resourcing/capacity constraints that are present but manageable through active planning or access to specialist support. | C19: High | D19: 0.25 | E19: Descriptor
A20: Medium | B20: Defined governance and some relevant delivery experience (including comparable work), but capacity is constrained and/or key skills are limited—requiring proactive recruitment, partner support, or targeted capability uplift to deliver effectively. | C20: Medium | D20: 0.5 | E20: Descriptor
A21: Low | B21: Governance is partial or still maturing (decision rights/assurance not fully embedded) and comparable delivery experience is limited, with significant resourcing constraints and/or inconsistent delivery performance—creating elevated delivery risk without substantial additional support. | C21: Low | D21: 0.75 | E21: Descriptor
A22: Very Low | B22: Governance is not established (unclear decision rights/assurance) and there is little to no recent comparable delivery experience and/or major capacity constraints; delivery would rely on bespoke arrangements or significant external capability to succeed. | C22: Very Low | D22: 1 | E22: Descriptor
A23: R5. Complexity of obtaining Social Licence | B23: The extent to which environmental, social, economic and cultural/heritage impacts are complex, interdependent and contested, and the project team’s capability to secure and maintain stakeholder acceptance and approvals. | C23: 0.125 | D23: =$D$3 -> Score | E23: Requirement
A24: Very High | B24: Highly complex, interdependent and contested impacts with multiple sensitive stakeholder groups, significant approval risk, and limited capability to effectively secure and maintain social licence. | C24: Very High | D24: 1 | E24: Descriptor
A25: High | B25: Complex or sensitive impacts involving multiple stakeholder groups and potentially contentious approvals or conditions, requiring sustained engagement, specialist support and intensive management effort. | C25: High | D25: 0.75 | E25: Descriptor
A26: Medium | B26: Moderate impact complexity with some interdependencies and stakeholder sensitivities, manageable through active coordination, planned mitigations and consistent, targeted engagement. | C26: Medium | D26: 0.5 | E26: Descriptor
A27: Low | B27: Low impact complexity with limited stakeholders and straightforward approvals, manageable through standard mitigations and routine enegagement. | C27: Low | D27: 0.25 | E27: Descriptor
A28: Very Low | B28: Minimal, well-understood impacts with few stakeholders and no contentious approvals, supported by strong capability and established processes to maintain social licence. | C28: Very Low | D28: 0 | E28: Descriptor
A29: R6. Funding, Procurement & Delivery Complexity | B29: The degree of complexity associated with funding arrangements, functional requirements, and sourcing activities—including scale, novelty, market constraints, interdependencies, and compliance obligations—and the extent to which these factors challenge procurement capability and impact delivery across project phases. | C29: 0.125 | D29: =$D$3 -> Score | E29: Requirement
A30: Very High | B30: Highly complex funding and/or procurement (novel financing or contracting, significant compliance obligations, constrained market capacity) and/or technically complex requirements, with proven delivery difficulty—requiring intensive commercial and delivery management across phases. | C30: Very High | D30: 1 | E30: Descriptor
A31: High | B31: Complex funding and/or procurement (non standard commercial model, challenging market conditions, or substantial compliance requirements) with elevated delivery risk and limited agency experience managing comparable complexity. | C31: High | D31: 0.75 | E31: Descriptor
A32: Medium | B32: Moderate funding/procurement complexity (some non standard requirements, moderate market constraints, and/or additional compliance steps) using adapted or less common contract forms, requiring active risk allocation and commercial management. | C32: Medium | D32: 0.5 | E32: Descriptor
A33: Low | B33: Low funding/procurement complexity using standard contract forms and routine funding arrangements, with minimal non standard requirements, low delivery risk, and strong agency experience delivering similar projects. | C33: Low | D33: 0.25 | E33: Descriptor
A34: Very Low | B34: Minimal funding/procurement complexity (simple, low value sourcing and straightforward funding), presenting negligible commercial/compliance burden and delivery risk. | C34: Very Low | D34: 0 | E34: Descriptor
A37: ='ISA Risk Tier Calculator'!A17 -> National Significance | B37: Is the initiative proposing to seek $250m or greater of Federal Government funding and/or meets the definition of Nationally Significant ? Infrastructure Australia (IA) defines nationally significant infrastructure as proposals that require Australian Government involvement, and/or relate to national infrastructure networks; materially advance national priorities and productivity, economic, social, liveability or sustainability outcomes at a national or wide-reaching regional scale. The Infrastructure Australia Act 2008 (the Act) defines nationally significant infrastructure as including “transport, energy, communications, water and social infrastructure in which investment or further investment will materially improve national productivity.” | C37: 0 | D37: Risk Score
A38: Yes | B38: Yes, the proposal is considered a nationally significant initiative and/or will seek $250m or greater funding from the Australian Commonwealth Government. | C38: Very High | D38: Tier 1
A39: No | B39: No, the proposal does not meet the definition. | C39: Very Low | D39: As per calculated Assurance Tier
